bitfinex-derivatives/quotes_BTCF0:USTF0_20251210
["timestamp","ask_amount","ask_price","bid_price","bid_amount"]
[1765359603079,0.0107966,92623.0,92621.0,0.0107969]
[1765359603278,0.0672766,92623.0,92622.0,0.05966]
[1765359603479,0.0672766,92623.0,92622.0,0.08966]
[1765359604384,0.0682766,92623.0,92622.0,0.05966]
[1765359605075,0.0672766,92623.0,92622.0,0.06066]
[1765359605275,0.0682766,92623.0,92622.0,0.06066]
[1765359608088,0.4982766,92623.0,92622.0,0.06066]
[1765359608274,0.4982766,92623.0,92622.0,0.001]
[1765359608777,0.4982766,92623.0,92622.0,0.03066]
[1765359609585,0.4982766,92623.0,92622.0,0.001]
[1765359609884,0.4982766,92623.0,92622.0,0.03066]
[1765359610283,0.4982766,92623.0,92622.0,0.06066]
[1765359610587,0.0682766,92623.0,92622.0,0.35066]
[1765359611184,0.0682766,92623.0,92622.0,0.10066]
[1765359612182,0.0682766,92623.0,92622.0,0.1114567]
[1765359616488,0.0682766,92623.0,92622.0,0.10066]
[1765359618891,0.0682766,92623.0,92622.0,0.001]
[1765359619074,0.0682766,92623.0,92622.0,0.051]
[1765359619279,0.1282766,92623.0,92622.0,0.06066]
[1765359619895,0.1282766,92623.0,92622.0,0.0714567]
[1765359620391,0.0682766,92623.0,92622.0,0.1414567]
[1765359620689,0.3582766,92623.0,92622.0,0.06066]
[1765359620894,0.3982766,92623.0,92622.0,0.06066]
[1765359621383,0.3982766,92623.0,92622.0,0.001]
[1765359621693,0.42192292,92623.0,92622.0,0.001]
[1765359622389,0.3982766,92623.0,92622.0,0.001]
[1765359622784,0.1682766,92623.0,92622.0,0.001]
[1765359624083,0.19191733,92623.0,92622.0,0.001]
[1765359625893,0.09191733,92623.0,92622.0,0.02895]
[1765359626091,0.09191733,92623.0,92622.0,0.05705]
[1765359634088,0.0682766,92623.0,92622.0,0.05705]
[1765359634895,0.001,92623.0,92622.0,0.36705]
[1765359635288,0.03016,92623.0,92622.0,0.36705]
[1765359635495,0.05998,92623.0,92622.0,0.36705]
[1765359636899,0.03016,92623.0,92622.0,0.36705]
[1765359637294,0.05998,92623.0,92622.0,0.36705]
[1765359637491,0.05998,92623.0,92622.0,0.14705]
[1765359638499,0.05998,92623.0,92622.0,0.13705]
[1765359638689,0.05998,92623.0,92622.0,0.05705]
[1765359638891,0.05998,92623.0,92622.0,0.14705]
[1765359640201,0.0707766,92623.0,92622.0,0.14705]
[1765359641398,0.0707766,92623.0,92622.0,0.05705]
[1765359644808,0.0707766,92623.0,92622.0,0.53705]
[1765359645103,0.05998,92623.0,92622.0,0.25705]
[1765359645493,0.05998,92623.0,92622.0,0.05705]
[1765359662819,0.05998,92623.0,92622.0,0.14705]
[1765359664015,0.08363885,92623.0,92622.0,0.14705]
[1765359669124,0.08363885,92623.0,92622.0,0.05705]
[1765359669332,0.08363885,92623.0,92622.0,0.11536744]
[1765359671929,0.08363885,92623.0,92622.0,0.59536744]
[1765359674225,0.05998,92623.0,92622.0,0.53705]
[1765359686629,0.03016,92623.0,92622.0,0.53705]
[1765359687029,0.05826,92623.0,92622.0,0.53705]
[1765359692646,0.001,92623.0,92622.0,0.55402]
[1765359692928,0.00016194,92630.0,92629.0,0.0691459]
[1765359693122,0.00016194,92630.0,92629.0,0.2291459]
[1765359694436,0.00016194,92630.0,92629.0,0.5391459]
[1765359694733,0.00116194,92630.0,92629.0,0.5391459]
[1765359695433,0.00316194,92630.0,92629.0,0.5391459]
[1765359696829,0.010795,92637.0,92629.0,0.5391459]
[1765359697135,0.010795,92637.0,92636.0,0.0691451]
[1765359697136,0.038015,92637.0,92636.0,0.0691451]
[1765359697336,0.038015,92637.0,92636.0,0.4691451]
[1765359698336,0.040015,92637.0,92636.0,0.4691451]
[1765359698636,0.042015,92637.0,92636.0,0.4691451]
[1765359698836,0.070115,92637.0,92636.0,0.4691451]
[1765359700735,0.004,92637.0,92636.0,0.4691451]
[1765359701233,0.03122,92637.0,92636.0,0.4691451]
[1765359701437,0.05932,92637.0,92636.0,0.4691451]
[1765359702337,0.05932,92637.0,92636.0,0.52735955]
[1765359703532,0.03122,92637.0,92636.0,0.4691451]
[1765359705432,0.05932,92637.0,92636.0,0.4691451]
[1765359709044,0.004,92637.0,92636.0,0.4691451]
[1765359709938,0.03122,92637.0,92636.0,0.4691451]
[1765359710242,0.05932,92637.0,92636.0,0.4691451]
[1765359711836,0.03122,92637.0,92636.0,0.4691451]
[1765359712037,0.004,92637.0,92636.0,0.4691451]
[1765359712736,0.004,92637.0,92636.0,0.52735285]
[1765359712937,0.004,92637.0,92636.0,0.61735285]
[1765359714039,0.00010762,92646.0,92645.0,0.0676241]
[1765359714239,0.00010762,92646.0,92645.0,0.5076241]
[1765359714439,0.02767762,92646.0,92645.0,0.5076241]
[1765359715157,0.03167762,92646.0,92645.0,0.5076241]
[1765359715547,0.03167762,92646.0,92645.0,0.51839099]
[1765359715750,0.07565762,92646.0,92645.0,0.16839099]
[1765359715947,0.07565762,92646.0,92645.0,0.1976241]
[1765359716252,0.07565762,92646.0,92645.0,0.20837643]
[1765359716552,0.07865762,92646.0,92645.0,0.20837643]
[1765359717150,0.07865762,92646.0,92645.0,0.1976241]
[1765359717954,0.07865762,92646.0,92645.0,0.20866315]
[1765359720350,0.10197411,92646.0,92645.0,0.20866315]
[1765359721153,0.07865762,92646.0,92645.0,0.1976241]
[1765359721355,0.10197899,92646.0,92645.0,0.1976241]
[1765359721650,0.10197899,92646.0,92636.0,0.05699194]
[1765359721651,0.07155,92637.0,92636.0,0.05699194]
[1765359721859,0.07155,92637.0,92636.0,0.44699194]
[1765359721860,0.082345,92637.0,92636.0,0.44699194]
[1765359722752,0.07155,92637.0,92636.0,0.44699194]
[1765359723146,0.07255,92637.0,92636.0,0.44699194]
[1765359723450,0.07255,92637.0,92636.0,0.53699194]
[1765359723451,0.07455,92637.0,92636.0,0.53699194]
[1765359726549,0.003,92637.0,92636.0,0.53699194]
[1765359730170,0.03154,92637.0,92636.0,0.53699194]
[1765359730563,0.003,92637.0,92636.0,0.53699194]
[1765359736564,0.03154,92637.0,92636.0,0.53699194]
[1765359737069,0.003,92637.0,92636.0,0.53699194]
[1765359737367,0.05899,92637.0,92636.0,0.53699194]
[1765359737867,0.05899,92637.0,92636.0,0.54778704]
[1765359738168,0.03154,92637.0,92636.0,0.54778704]
[1765359738467,0.003,92637.0,92636.0,0.54778704]
[1765359742856,0.003,92637.0,92636.0,0.62555585]
[1765359744072,0.003,92637.0,92636.0,0.54778704]
[1765359745064,0.003,92637.0,92636.0,0.59736081]
[1765359749170,0.03144,92637.0,92636.0,0.59736081]
[1765359751079,0.003,92637.0,92636.0,0.59736081]
[1765359756179,0.03144,92637.0,92636.0,0.59736081]
[1765359756375,0.003,92637.0,92636.0,0.59736081]
[1765359758475,0.00010762,92646.0,92645.0,0.0680041]
[1765359758673,0.00010762,92646.0,92645.0,0.5080041]
[1765359759074,0.05759585,92656.0,92655.0,0.0680029]
[1765359759272,0.08124533,92656.0,92655.0,0.0680029]
[1765359760581,0.08124533,92656.0,92655.0,0.05721]
[1765359761375,0.08224533,92656.0,92655.0,0.05721]
[1765359761572,0.08424533,92656.0,92655.0,0.05721]
[1765359761972,0.08424533,92656.0,92655.0,0.0680029]
[1765359764385,0.08424533,92656.0,92655.0,0.05721]
[1765359764386,0.06059585,92656.0,92655.0,0.05721]
[1765359764686,0.0842245,92656.0,92655.0,0.05721]
[1765359765284,0.06059585,92656.0,92655.0,0.05721]
[1765359765982,0.06059585,92656.0,92655.0,0.0680029]
[1765359766285,0.06059585,92656.0,92655.0,0.05721]
[1765359774678,0.0855829,92655.0,92654.0,0.05830093]
[1765359774882,0.4755829,92655.0,92653.0,0.05830093]
[1765359775082,0.05842,92654.0,92653.0,0.05830093]
[1765359775279,0.41842,92654.0,92653.0,0.08552093]
[1765359775782,0.41842,92654.0,92653.0,0.11543093]
[1765359777293,0.41942,92654.0,92653.0,0.11543093]
[1765359778091,0.05942,92654.0,92653.0,0.12622403]
[1765359778295,0.05942,92654.0,92653.0,0.0679231]
[1765359780899,0.15942,92654.0,92653.0,0.0679231]
[1765359782399,0.05942,92654.0,92653.0,0.02722]
[1765359782711,0.41942,92654.0,92653.0,0.0679231]
[1765359783894,0.10942,92654.0,92653.0,0.0679231]
[1765359787005,0.05942,92654.0,92653.0,0.0679231]
[1765359788007,0.05942,92654.0,92653.0,0.05713]
[1765359792311,0.15942,92654.0,92653.0,0.0679231]
[1765359794112,0.18301159,92654.0,92653.0,0.0679231]
[1765359802632,0.08301159,92654.0,92653.0,0.4479231]
[1765359804940,0.08301159,92654.0,92653.0,0.1979231]
[1765359805437,0.08301159,92654.0,92653.0,0.05713]
[1765359814146,0.05942,92654.0,92653.0,0.05713]
[1765359817049,0.07612,92654.0,92653.0,0.05713]
[1765359818253,0.05942,92654.0,92653.0,0.05713]
[1765359820058,0.070213,92654.0,92653.0,0.05713]
[1765359820751,0.05942,92654.0,92653.0,0.14713]
[1765359820935,0.02969,92654.0,92653.0,0.56713]
[1765359821135,0.02968,92654.0,92653.0,0.56713]
[1765359823959,0.05884,92654.0,92653.0,0.56713]
[1765359824150,0.08284134,92654.0,92653.0,0.56713]
[1765359826854,0.0274939,92649.0,92648.0,0.0406436]
[1765359827151,0.0853339,92649.0,92648.0,0.4593036]
[1765359828658,0.0863339,92649.0,92648.0,0.4593036]
[1765359828961,0.0863339,92649.0,92648.0,0.4603036]
[1765359831752,0.07554,92649.0,92648.0,0.4603036]
[1765359836259,0.07554,92649.0,92648.0,0.0703036]
[1765359836452,0.07554,92649.0,92648.0,0.05951]
[1765359837360,0.07554,92649.0,92648.0,0.0703037]
[1765359837662,0.07554,92649.0,92648.0,0.0803037]
[1765359838460,0.07554,92649.0,92648.0,0.0703037]
[1765359839156,0.07554,92649.0,92648.0,0.05951]
[1765359842359,0.001,92649.0,92648.0,0.46951]
[1765359842661,0.001,92649.0,92648.0,0.55951]
[1765359843258,0.0281,92649.0,92648.0,0.55951]
[1765359843458,0.0281,92649.0,92648.0,0.46951]
[1765359843459,0.07434,92649.0,92648.0,0.46951]
[1765359849770,0.0281,92649.0,92648.0,0.46951]
[1765359850065,0.0281,92649.0,92648.0,0.54951]
[1765359850367,0.001,92649.0,92648.0,0.54951]
[1765359853164,0.03025,92649.0,92648.0,0.54951]
[1765359853369,0.05786,92649.0,92648.0,0.46951]
[1765359854170,0.08171882,92649.0,92648.0,0.46951]
[1765359856672,0.08171882,92649.0,92648.0,0.54951]
[1765359859172,0.08149882,92649.0,92648.0,0.54951]
[1765359864184,0.05764,92649.0,92648.0,0.54951]
[1765359864585,0.00078,92649.0,92648.0,0.54951]
[1765359864883,0.02963,92649.0,92648.0,0.54951]
[1765359868385,0.00078,92649.0,92648.0,0.54951]
[1765359868688,0.00078,92649.0,92648.0,0.56255]
[1765359880905,0.00021585,92656.0,92655.0,0.05773]
[1765359881110,0.00021585,92656.0,92655.0,0.56773]
[1765359881410,0.00021585,92656.0,92655.0,0.5785229]
[1765359882304,0.00221585,92656.0,92655.0,0.5785229]
[1765359882703,0.00321585,92656.0,92655.0,0.5785229]
[1765359886214,0.05945585,92656.0,92655.0,0.5785229]
[1765359887015,0.00321585,92656.0,92655.0,0.5785229]
[1765359887314,0.03206585,92656.0,92655.0,0.5785229]
[1765359889115,0.00321585,92656.0,92655.0,0.5785229]
[1765359889307,0.03206585,92656.0,92655.0,0.5785229]
[1765359896421,0.00321585,92656.0,92655.0,0.5785229]
[1765359902623,0.07624585,92656.0,92655.0,0.02883]
[1765359902807,0.10006566,92656.0,92655.0,0.05618]
[1765359904119,0.07624585,92656.0,92655.0,0.05618]
[1765359914828,0.07624585,92656.0,92655.0,0.44618]
[1765359921134,0.07624585,92656.0,92655.0,0.52618]
[1765359924136,0.00321585,92656.0,92655.0,0.52618]
[1765359924318,0.00321585,92656.0,92655.0,0.56912118]
[1765359924522,0.0107921,92662.0,92661.0,0.0669922]
[1765359924722,0.0107921,92662.0,92661.0,0.5269922]
[1765359925827,0.0137921,92662.0,92661.0,0.5269922]
[1765359926930,0.0157921,92662.0,92661.0,0.5269922]
[1765359927834,0.005,92662.0,92661.0,0.5269922]
[1765359931926,0.03484,92662.0,92661.0,0.5269922]
[1765359932440,0.005,92662.0,92661.0,0.5269922]
[1765359934342,0.02892373,92662.0,92661.0,0.5269922]
[1765359940138,0.005,92662.0,92661.0,0.5269922]
[1765359941540,0.002,92662.0,92661.0,0.5269922]
[1765359941741,0.002,92662.0,92661.0,0.5279922]
[1765359943452,0.00107916,92665.0,92664.0,0.0669918]
[1765359943653,0.00107916,92665.0,92664.0,0.5400318]
[1765359944241,0.02499596,92665.0,92664.0,0.5400318]
[1765359944649,0.02499596,92665.0,92664.0,0.5420318]
[1765359945046,0.02080185,92665.0,92664.0,0.5420318]
[1765359945246,0.0169,92688.0,92664.0,0.5420318]
[1765359945247,0.0107904,92677.0,92676.0,0.0669904]
[1765359945449,0.0107904,92677.0,92676.0,0.5069904]
[1765359945752,0.0406304,92677.0,92676.0,0.5069904]
[1765359946362,0.02984,92677.0,92676.0,0.5069904]
[1765359946662,0.03184,92677.0,92676.0,0.5069904]
[1765359947557,0.002,92677.0,92676.0,0.5069904]
[1765359951760,0.05825788,92689.0,92676.0,0.5069904]
[1765359951761,0.05933675,92690.0,92676.0,0.4623104]
[1765359951962,0.0397374,92702.0,92701.0,0.0666275]
[1765359952263,0.0397374,92702.0,92701.0,0.2266275]
[1765359952862,0.02895,92702.0,92701.0,0.4766275]
[1765359953064,0.03495,92702.0,92701.0,0.4766275]
[1765359953460,0.03695,92702.0,92701.0,0.4766275]
[1765359953764,0.03095,92702.0,92701.0,0.4766275]
[1765359953964,0.004,92702.0,92701.0,0.57766011]
[1765359955161,0.03295,92702.0,92701.0,0.57766011]
[1765359955354,0.004,92702.0,92701.0,0.57766011]
[1765359958467,0.002,92702.0,92701.0,0.57766011]
[1765359958664,0.0107868,92708.0,92707.0,0.0666268]
[1765359958965,0.0107868,92708.0,92707.0,0.5366268]
[1765359960069,0.0107868,92708.0,92707.0,0.5386268]
[1765359961363,0.0107862,92713.0,92712.0,0.066626]
[1765359961669,0.0689462,92713.0,92712.0,0.066626]
[1765359962469,0.0699462,92713.0,92712.0,0.066626]
[1765359962670,0.0699462,92713.0,92712.0,0.067626]
[1765359963362,0.0699462,92713.0,92712.0,0.05684]
[1765359965578,0.0407362,92713.0,92712.0,0.05684]
[1765359965782,0.0699462,92713.0,92712.0,0.05684]
[1765359967068,0.0407362,92713.0,92712.0,0.05684]
[1765359967272,0.05916,92713.0,92712.0,0.13684]
[1765359967480,0.001,92713.0,92712.0,0.13684]
[1765359967778,0.001,92713.0,92712.0,0.52684]
[1765359967978,0.02895,92724.0,92723.0,0.066625]
[1765359968281,0.0862842,92730.0,92729.0,0.0666243]
[1765359969876,0.0205038,92733.0,92732.0,0.07287]
[1765359971779,0.0225038,92733.0,92732.0,0.07287]
[1765359971982,0.0245038,92733.0,92732.0,0.07287]
[1765359979885,0.0196438,92733.0,92732.0,0.07287]
[1765359980488,0.0147838,92733.0,92732.0,0.45287]
[1765359981086,0.020502,92749.0,92748.0,0.07287]
[1765359981280,0.04411019,92749.0,92748.0,0.07287]
[1765359982284,0.03839019,92749.0,92748.0,0.07287]
[1765359982487,0.014782,92749.0,92748.0,0.15287]
[1765359982879,0.004,92749.0,92748.0,0.15287]
[1765359983581,0.008,92749.0,92748.0,0.15287]
[1765359983782,0.007,92749.0,92748.0,0.15287]
[1765359984588,0.0156419,92750.0,92749.0,0.069292]
[1765359985304,0.00486,92750.0,92749.0,0.069292]
[1765359985890,0.42567432,92751.0,92750.0,0.05851]
[1765359986090,0.00486,92751.0,92750.0,0.05851]
[1765359987283,0.00972,92751.0,92750.0,0.05851]
[1765359987488,0.01272,92751.0,92750.0,0.05851]
[1765359987991,0.01572,92751.0,92750.0,0.05851]
[1765359988692,0.01172,92751.0,92750.0,0.05851]
[1765359990883,0.00686,92751.0,92750.0,0.05851]
[1765359992782,0.01172,92751.0,92750.0,0.05851]
[1765359993486,0.03532428,92751.0,92750.0,0.05851]
[1765359994192,0.01172,92751.0,92750.0,0.05851]
[1765359998894,0.025637,92751.0,92750.0,0.14851]
[1765359999283,0.002,92751.0,92750.0,0.14851]
[1765360000692,0.00686,92751.0,92750.0,0.14851]
[1765360001484,0.00686,92751.0,92750.0,0.05851]
[1765360001684,0.01172,92751.0,92750.0,0.05851]
[1765360003595,0.0353657,92751.0,92750.0,0.05851]
[1765360006805,0.0256457,92751.0,92746.0,0.0107822]
[1765360007006,0.0236457,92750.0,92746.0,0.1007822]
[1765360007605,0.02366027,92749.0,92746.0,0.1007822]
[1765360007828,0.02366027,92748.0,92746.0,0.1007822]
[1765360008016,0.02366027,92747.0,92746.0,0.1007822]
[1765360008213,0.0107822,92748.0,92746.0,0.1007822]
[1765360008414,0.02366502,92747.0,92746.0,0.1007822]
[1765360009925,0.02466502,92747.0,92746.0,0.1007822]
[1765360010121,0.02566502,92747.0,92746.0,0.1007822]
[1765360013727,0.02566502,92747.0,92746.0,0.1007823]
[1765360015217,0.02566502,92747.0,92746.0,0.4607823]
[1765360015527,0.002,92747.0,92746.0,0.4607823]
[1765360020435,0.0107805,92762.0,92761.0,0.0107802]
[1765360020621,0.0107805,92762.0,92761.0,0.1007802]
[1765360021628,0.0147805,92762.0,92761.0,0.1007802]
[1765360022036,0.03866606,92762.0,92761.0,0.1007802]
[1765360022622,0.02788556,92762.0,92761.0,0.1007802]
[1765360022822,0.004,92762.0,92761.0,0.1007802]
[1765360024531,0.00257702,92762.0,92761.0,0.4707802]
[1765360024738,0.00257702,92762.0,92761.0,0.548287]
[1765360025136,0.00257702,92762.0,92761.0,0.4707802]
[1765360025837,0.010779,92775.0,92761.0,0.4707802]
[1765360026237,0.0107787,92778.0,92777.0,0.0107783]
[1765360026446,0.0107787,92778.0,92777.0,0.5307783]
[1765360026630,0.0107783,92781.0,92780.0,0.0107778]
[1765360027937,0.0127783,92781.0,92780.0,0.0107778]
[1765360028538,0.0107783,92781.0,92780.0,0.0107778]
[1765360029441,0.010778,92787.0,92786.0,0.0107776]
[1765360030143,0.0107783,92784.0,92783.0,0.010778]
[1765360030333,0.0107783,92784.0,92783.0,0.090778]
[1765360031547,0.0127783,92784.0,92783.0,0.10134387]
[1765360032237,0.0107782,92781.0,92780.0,0.0107783]
[1765360032438,0.0107782,92781.0,92780.0,0.0907783]
[1765360033741,0.0117782,92781.0,92780.0,0.0907783]
[1765360033943,0.001,92781.0,92780.0,0.3107783]
[1765360034944,0.00107771,92790.0,92789.0,0.0107773]
[1765360035249,0.00107771,92790.0,92789.0,0.5107773]
[1765360037246,0.00207771,92790.0,92789.0,0.5107773]
[1765360052359,0.0107765,92797.0,92796.0,0.01763]
[1765360052555,0.0107765,92797.0,92796.0,0.49763]
[1765360053454,0.0498272,92804.0,92803.0,0.0107757]
[1765360053655,0.00107742,92815.0,92814.0,0.0283444]
[1765360053849,0.00107742,92815.0,92814.0,0.1183444]
[1765360054562,0.00107742,92815.0,92814.0,0.01757]
[1765360055151,0.00107742,92815.0,92814.0,0.32757]
[1765360055758,0.00107742,92815.0,92814.0,0.32857]
[1765360056465,0.00107742,92815.0,92814.0,0.001]
[1765360057659,0.02479846,92815.0,92814.0,0.001]
[1765360059664,0.00107742,92815.0,92814.0,0.441]
[1765360061460,0.00107742,92815.0,92814.0,0.351]
[1765360064066,0.00107742,92815.0,92814.0,0.001]
[1765360064260,0.41107742,92815.0,92814.0,0.001]
[1765360064456,0.16479793,92815.0,92814.0,0.001]
[1765360065164,0.42479793,92815.0,92814.0,0.001]
[1765360067168,0.43513793,92815.0,92814.0,0.001]
[1765360071962,0.42479793,92815.0,92814.0,0.001]
[1765360073475,0.42479793,92815.0,92805.0,0.01093707]
[1765360073476,0.0107753,92806.0,92805.0,0.00016167]
[1765360074675,0.0107753,92806.0,92805.0,0.00216167]
[1765360074976,0.0107753,92806.0,92805.0,0.00416167]
[1765360083284,0.03415475,92806.0,92805.0,0.00416167]
[1765360083478,0.0107753,92806.0,92805.0,0.45416167]
[1765360084378,0.0107744,92814.0,92813.0,0.0107745]
[1765360084571,0.00107742,92815.0,92813.0,0.4607745]
[1765360085476,0.00107742,92815.0,92813.0,0.4617745]
[1765360085878,0.0107744,92814.0,92813.0,0.4617745]
[1765360086084,0.0107744,92814.0,92813.0,0.001]
[1765360086275,0.00107742,92815.0,92814.0,0.0107744]
[1765360087178,0.0107744,92814.0,92813.0,0.001]
[1765360087683,0.0107744,92814.0,92813.0,0.0107745]
[1765360088183,0.0107753,92806.0,92805.0,0.0580883]
[1765360088378,0.4307753,92806.0,92805.0,0.00016167]
[1765360089185,0.2107753,92806.0,92805.0,0.00016167]
[1765360089774,0.3807753,92806.0,92805.0,0.00016167]
[1765360090186,0.3807753,92806.0,92805.0,0.00316167]
[1765360090588,0.3807753,92806.0,92805.0,0.00716167]
[1765360090783,0.00107742,92815.0,92810.0,0.01622]
[1765360090975,0.00107742,92815.0,92810.0,0.37622]
[1765360090976,0.0107748,92811.0,92810.0,0.37622]
[1765360091181,0.00107742,92815.0,92811.0,0.0107748]
[1765360091381,0.00107742,92815.0,92813.0,0.0107745]
[1765360091582,0.00107742,92815.0,92813.0,0.5007745]
[1765360091977,0.00107742,92815.0,92814.0,0.01622]
[1765360092173,0.00107742,92815.0,92814.0,0.21622]
[1765360092378,0.00107742,92815.0,92814.0,0.10622]
[1765360093079,0.00107742,92815.0,92814.0,0.01622]
[1765360093982,0.00107742,92815.0,92814.0,0.02122]
[1765360094377,0.00107742,92815.0,92814.0,0.50822]
[1765360094889,0.00107742,92815.0,92814.0,0.56788]
[1765360096880,7.742e-05,92815.0,92814.0,0.56788]
[1765360097081,0.0107729,92828.0,92827.0,0.02989]
[1765360097287,0.0691829,92828.0,92827.0,0.05966]
[1765360097985,0.07027853,92840.0,92839.0,0.05604]
[1765360098284,0.05950713,92840.0,92839.0,0.05604]
[1765360099292,0.0692022,92833.0,92832.0,0.07356]
[1765360099784,0.0692022,92833.0,92830.0,0.00016157]
[1765360099987,0.05843,92831.0,92830.0,0.05620157]
[1765360100585,0.05843,92831.0,92830.0,0.06697407]
[1765360100980,0.05843,92831.0,92830.0,0.06897407]
[1765360101181,0.00107713,92840.0,92839.0,0.05604]
[1765360101382,0.00107713,92840.0,92839.0,0.46604]
[1765360102486,0.00107713,92840.0,92839.0,0.5239021]
[1765360102689,0.00107713,92840.0,92839.0,0.46604]
[1765360103299,0.00107713,92840.0,92839.0,0.52571376]
[1765360103591,0.00107713,92840.0,92839.0,0.52671376]
[1765360104296,0.00107713,92840.0,92839.0,0.46904]
[1765360106195,0.05950713,92840.0,92839.0,0.46904]
[1765360106688,0.00107713,92840.0,92839.0,0.46904]
[1765360107088,2.55e-06,92841.0,92840.0,0.0668114]
[1765360107288,2.55e-06,92841.0,92840.0,0.5668114]
[1765360108596,2.55e-06,92841.0,92840.0,0.5678114]
[1765360109507,2.55e-06,92841.0,92840.0,0.5688114]
[1765360109700,0.0107686,92864.0,92862.0,0.0278888]
[1765360109993,0.00107655,92890.0,92864.0,0.05939]
[1765360110191,0.00107655,92890.0,92889.0,0.0107657]
[1765360110394,0.00107655,92890.0,92889.0,0.5201557]
[1765360110586,0.00568856,92895.0,92894.0,0.0701551]
[1765360110786,0.05801626,92915.0,92914.0,0.05939]
[1765360110985,0.03021626,92915.0,92914.0,0.0701528]
[1765360111187,0.00107626,92915.0,92914.0,0.0701528]
[1765360112401,0.05694,92921.0,92920.0,0.070152]
[1765360112598,0.05694,92921.0,92920.0,0.440152]
[1765360112898,0.05694,92921.0,92920.0,0.070152]
[1765360113200,0.05694,92932.0,92931.0,0.02945]
[1765360113390,0.05694,92923.0,92922.0,0.00016148]
[1765360114201,0.05694,92923.0,92922.0,0.05955148]
[1765360114403,0.0677004,92935.0,92934.0,0.02945]
[1765360114589,0.4377004,92935.0,92934.0,0.02945]
[1765360114790,0.05694,92926.0,92925.0,0.07651]
[1765360114987,0.05694,92926.0,92925.0,0.02945]
[1765360115188,0.06877587,92940.0,92939.0,0.05939]
[1765360115388,0.05694,92929.0,92928.0,0.01712]
[1765360115587,0.05694,92923.0,92922.0,0.07531338]
[1765360115800,0.05694,92923.0,92922.0,0.16531338]
[1765360115996,0.05694,92923.0,92922.0,0.07331338]
[1765360116202,0.05694,92923.0,92922.0,0.07031338]
[1765360116885,0.02914,92923.0,92922.0,0.07331338]
[1765360117090,0.05694,92933.0,92932.0,0.0701507]
[1765360117292,0.05694,92928.0,92927.0,0.0107612]
[1765360117694,0.05694,92928.0,92927.0,0.0402112]
[1765360118602,0.05694,92928.0,92927.0,0.0721512]
[1765360118904,0.05694,92928.0,92927.0,0.0741512]
[1765360119398,0.05694,92928.0,92927.0,0.004]
[1765360119602,0.07221,92928.0,92927.0,0.004]
[1765360120700,0.36221,92928.0,92927.0,0.004]
[1765360121300,0.0677018,92923.0,92922.0,0.00016148]
[1765360121491,0.4277018,92923.0,92922.0,0.00016148]
[1765360122604,0.4277018,92923.0,92922.0,0.00316148]
[1765360123301,0.1177018,92923.0,92922.0,0.00316148]
[1765360123903,0.1177018,92923.0,92922.0,0.00516148]
[1765360124706,0.1177018,92923.0,92922.0,0.00216148]
[1765360125206,0.1177018,92923.0,92922.0,0.06155148]
[1765360125207,0.0677018,92923.0,92922.0,0.06155148]
[1765360125392,0.0677018,92923.0,92922.0,0.06255148]
[1765360125890,0.16908053,92940.0,92929.0,0.05939]
[1765360125891,0.067701,92930.0,92929.0,0.05939]
[1765360126296,0.067701,92930.0,92929.0,0.02945]
[1765360126600,0.0677015,92926.0,92925.0,0.05939]
[1765360128390,0.0677015,92926.0,92922.0,0.02852148]
[1765360128391,0.0673818,92923.0,92922.0,0.02852148]
[1765360128598,0.4373818,92923.0,92922.0,0.00016148]
[1765360128998,0.0673818,92923.0,92922.0,0.00016148]
[1765360129799,0.0673818,92923.0,92922.0,0.00216148]
[1765360130097,0.0673818,92923.0,92922.0,0.03252148]
[1765360130303,0.05662,92923.0,92922.0,0.06166148]
[1765360131102,0.0673712,92928.0,92927.0,0.0575]
[1765360131302,0.05661,92928.0,92927.0,0.0682613]
[1765360132408,0.05661,92928.0,92927.0,0.0692613]
[1765360132906,0.05661,92928.0,92927.0,0.0585]
[1765360133203,0.05661,92928.0,92927.0,0.0595]
[1765360133403,0.06844577,92940.0,92939.0,0.0575]
[1765360133602,0.201524,92940.0,92939.0,0.0575]
[1765360133803,0.0673707,92933.0,92932.0,0.0575]
[1765360134209,0.0107611,92929.0,92928.0,0.0575]
[1765360134409,0.0673711,92929.0,92928.0,0.074]
[1765360135010,0.0107614,92926.0,92922.0,0.00016148]
[1765360135217,0.05661,92923.0,92922.0,0.06842338]
[1765360135400,0.0673718,92923.0,92922.0,0.06842338]
[1765360135601,0.05661,92923.0,92922.0,0.06842338]
[1765360136201,0.05661,92923.0,92922.0,0.06942338]
[1765360136497,0.05661,92930.0,92929.0,0.068261]
[1765360137899,0.067371,92930.0,92929.0,0.068261]
[1765360139312,0.090588,92930.0,92929.0,0.068261]
[1765360140511,0.079827,92930.0,92929.0,0.068261]
[1765360140712,0.00107597,92940.0,92929.0,0.068261]
[1765360140713,0.00107597,92940.0,92939.0,0.0107599]
[1765360141008,0.05661,92951.0,92950.0,0.0682586]
[1765360141210,0.02913,92957.0,92956.0,0.0575]
[1765360141403,0.02913,92957.0,92956.0,0.1375]
[1765360141802,0.0673678,92957.0,92956.0,0.0575]
[1765360142011,0.05661,92957.0,92956.0,0.0575]
[1765360142413,0.05961,92957.0,92956.0,0.0575]
[1765360143410,0.05961,92957.0,92956.0,0.02836]
[1765360143706,0.05961,92957.0,92956.0,0.03036]
[1765360143901,0.05961,92957.0,92956.0,0.002]
[1765360144095,0.46961,92957.0,92956.0,0.002]
[1765360144401,0.46661,92957.0,92956.0,0.004]
[1765360145505,0.05661,92957.0,92956.0,0.0615]
[1765360146008,0.05768568,92965.0,92964.0,0.0575]
[1765360146210,0.00107568,92965.0,92964.0,0.1075]
[1765360146413,0.00107568,92965.0,92964.0,0.5375]
[1765360146815,0.02913,92982.0,92981.0,0.0575]
[1765360147313,0.05661,92982.0,92981.0,0.0575]
[1765360147610,0.05661,92977.0,92976.0,0.0575]
[1765360148909,0.05861,92977.0,92976.0,0.0575]
[1765360149212,0.002,92977.0,92976.0,0.0575]
[1765360149416,0.05854,92977.0,92976.0,0.0575]
[1765360150809,0.05654,92973.0,92972.0,0.00016138]
[1765360151209,0.05654,92973.0,92972.0,0.05850138]
[1765360151409,0.0672983,92953.0,92952.0,0.05834]
[1765360151611,0.0672983,92953.0,92952.0,0.07547]
[1765360152714,0.0672983,92953.0,92952.0,0.07847]
[1765360153118,0.05654,92953.0,92952.0,0.07847]